[Event "November 21 Early 2023"]
[Site "https://www.chess.com"]
[Date "2023.11.21"]
[Round "9"]
[White "Jamal-Jamal-Jamal"]
[Black "Spata, German"]
[Result "0-1"]
[Board "86"]
[TimeControl "180+1"]
[BlackFideId "113026"]
[WhiteElo "2468"]
[BlackElo "2260"]
[BlackTeam "ARG"]
[WhiteClock "0:00:02"]
[BlackClock "0:00:08"]

1. d4 {[%clk 0:02:05]}  e6 {[%clk 0:02:51]} 2. Nf3 {[%clk 0:02:05]}  f5 {[%clk 0:02:49]} 3. g3 {[%clk 0:02:03]}  d5 {[%clk 0:02:47]} 4. Bg2 {[%clk 0:02:04]}  Nf6 {[%clk 0:02:47]} 5. O-O {[%clk 0:02:05]}  Bd6 {[%clk 0:02:47]} 6. b3 {[%clk 0:02:06]}  Qe7 {[%clk 0:02:46]} 7. c4 {[%clk 0:02:06]}  c6 {[%clk 0:02:46]} 8. a4 {[%clk 0:02:06]}  O-O {[%clk 0:02:45]} 9. Ba3 {[%clk 0:02:07]}  Ne4 {[%clk 0:02:45]} 10. Bxd6 {[%clk 0:02:06]}  Qxd6 {[%clk 0:02:46]} 11. Qc2 {[%clk 0:02:06]}  Nd7 {[%clk 0:02:45]} 12. Nc3 {[%clk 0:02:07]}  b6 {[%clk 0:02:35]} 13. Rfd1 {[%clk 0:01:59]}  Bb7 {[%clk 0:02:35]} 14. e3 {[%clk 0:02:00]}  Rac8 {[%clk 0:02:35]} 15. a5 {[%clk 0:01:55]}  c5 {[%clk 0:02:27]} 16. axb6 {[%clk 0:01:53]}  axb6 {[%clk 0:02:27]} 17. Ra7 {[%clk 0:01:37]}  Qb8 {[%clk 0:02:26]} 18. Rda1 {[%clk 0:01:35]}  dxc4 {[%clk 0:02:04]} 19. bxc4 {[%clk 0:01:35]}  cxd4 {[%clk 0:01:48]} 20. Nxe4 {[%clk 0:01:32]}  Bxe4 {[%clk 0:01:45]} 21. Qb2 {[%clk 0:01:18]}  Qd6 {[%clk 0:01:21]} 22. Nxd4 {[%clk 0:01:02]}  Bxg2 {[%clk 0:01:19]} 23. Kxg2 {[%clk 0:00:59]}  Rc7 {[%clk 0:01:12]} 24. Nb5 {[%clk 0:00:42]}  Qc6+ {[%clk 0:01:06]} 25. Kg1 {[%clk 0:00:42]}  Rxa7 {[%clk 0:01:00]} 26. Rxa7 {[%clk 0:00:43]}  Nf6 {[%clk 0:00:41]} 27. Rc7 {[%clk 0:00:43]}  Qf3 {[%clk 0:00:36]} 28. Nd4 {[%clk 0:00:37]}  Qe4 {[%clk 0:00:30]} 29. Qxb6 {[%clk 0:00:34]}  Re8 {[%clk 0:00:23]} 30. Qa7 {[%clk 0:00:31]}  Qb1+ {[%clk 0:00:10]} 31. Kg2 {[%clk 0:00:31]}  Qe4+ {[%clk 0:00:10]} 32. f3 {[%clk 0:00:27]}  Qxe3 {[%clk 0:00:10]} 33. Rxg7+ {[%clk 0:00:27]}  Kh8 {[%clk 0:00:11]} 34. Qf7 {[%clk 0:00:27]}  Qd2+ {[%clk 0:00:08]} 35. Kh3 {[%clk 0:00:26]}  Qh6+ {[%clk 0:00:08]} 36. Kg2 {[%clk 0:00:18]}  Qxg7 {[%clk 0:00:08]} 37. Qxg7+ {[%clk 0:00:12]}  Kxg7 {[%clk 0:00:09]} 38. c5 {[%clk 0:00:13]}  Kf7 {[%clk 0:00:09]} 39. c6 {[%clk 0:00:13]}  Rc8 {[%clk 0:00:08]} 40. f4 {[%clk 0:00:08]}  Ke7 {[%clk 0:00:08]} 41. Kf3 {[%clk 0:00:06]}  Kd6 {[%clk 0:00:09]} 42. g4 {[%clk 0:00:02]}  fxg4+ {[%clk 0:00:08]} 0-1

[Event "November 21 Early 2023"]
[Site "https://www.chess.com"]
[Date "2023.11.21"]
[Round "9"]
[White "Tasev, Dejan"]
[Black "Pourkashiyan, Atousa"]
[Result "0-1"]
[Board "87"]
[TimeControl "180+1"]
[WhiteFideId "936618"]
[BlackFideId "12502014"]
[WhiteElo "2248"]
[BlackElo "2221"]
[WhiteTeam "SRB"]
[BlackTeam "USA"]
[WhiteClock "0:00:19"]
[BlackClock "0:00:16"]

1. e4 {[%clk 0:03:00]}  c5 {[%clk 0:02:58]} 2. Nf3 {[%clk 0:03:00]}  e6 {[%clk 0:02:58]} 3. b3 {[%clk 0:03:00]}  a6 {[%clk 0:02:58]} 4. Bb2 {[%clk 0:03:00]}  Nf6 {[%clk 0:02:54]} 5. e5 {[%clk 0:03:00]}  Nd5 {[%clk 0:02:54]} 6. Nc3 {[%clk 0:03:00]}  Nxc3 {[%clk 0:02:49]} 7. dxc3 {[%clk 0:02:59]}  d5 {[%clk 0:02:42]} 8. exd6 {[%clk 0:02:59]}  Qxd6 {[%clk 0:02:40]} 9. Qe2 {[%clk 0:02:52]}  Nc6 {[%clk 0:02:36]} 10. g3 {[%clk 0:02:50]}  Be7 {[%clk 0:02:31]} 11. c4 {[%clk 0:02:49]}  Nd4 {[%clk 0:02:22]} 12. Nxd4 {[%clk 0:02:46]}  cxd4 {[%clk 0:02:21]} 13. O-O-O {[%clk 0:02:46]}  e5 {[%clk 0:02:18]} 14. Bg2 {[%clk 0:02:44]}  O-O {[%clk 0:02:07]} 15. Rhe1 {[%clk 0:02:43]}  Bf6 {[%clk 0:01:55]} 16. c3 {[%clk 0:02:17]}  Qb6 {[%clk 0:01:42]} 17. cxd4 {[%clk 0:02:14]}  exd4 {[%clk 0:01:43]} 18. Qd3 {[%clk 0:02:09]}  Bg4 {[%clk 0:01:35]} 19. Bf3 {[%clk 0:01:54]}  Bxf3 {[%clk 0:01:34]} 20. Qxf3 {[%clk 0:01:54]}  Rad8 {[%clk 0:01:33]} 21. Qd3 {[%clk 0:01:52]}  Qa5 {[%clk 0:01:31]} 22. Kb1 {[%clk 0:01:42]}  b5 {[%clk 0:01:31]} 23. c5 {[%clk 0:01:38]}  b4 {[%clk 0:01:32]} 24. Rc1 {[%clk 0:01:37]}  Qc7 {[%clk 0:01:23]} 25. c6 {[%clk 0:01:30]}  a5 {[%clk 0:01:22]} 26. Rc4 {[%clk 0:01:24]}  Rd6 {[%clk 0:01:20]} 27. Rec1 {[%clk 0:01:24]}  Rfd8 {[%clk 0:01:16]} 28. f4 {[%clk 0:01:24]}  h6 {[%clk 0:01:15]} 29. h4 {[%clk 0:01:22]}  h5 {[%clk 0:01:13]} 30. Rc5 {[%clk 0:01:21]}  Rd5 {[%clk 0:01:11]} 31. Rxd5 {[%clk 0:00:58]}  Rxd5 {[%clk 0:01:11]} 32. Qe4 {[%clk 0:00:54]}  Rd6 {[%clk 0:01:02]} 33. Qe8+ {[%clk 0:00:42]}  Kh7 {[%clk 0:01:01]} 34. Qe4+ {[%clk 0:00:42]}  g6 {[%clk 0:00:56]} 35. g4 {[%clk 0:00:42]}  hxg4 {[%clk 0:00:30]} 36. h5 {[%clk 0:00:42]}  Kg7 {[%clk 0:00:27]} 37. hxg6 {[%clk 0:00:43]}  fxg6 {[%clk 0:00:28]} 38. f5 {[%clk 0:00:40]}  d3 {[%clk 0:00:10]} 39. Qxg4 {[%clk 0:00:33]}  Bxb2 {[%clk 0:00:09]} 40. Kxb2 {[%clk 0:00:33]}  d2 {[%clk 0:00:09]} 41. f6+ {[%clk 0:00:22]}  Rxf6 {[%clk 0:00:09]} 42. Rd1 {[%clk 0:00:19]}  Qxc6 {[%clk 0:00:08]} 43. Qc4 {[%clk 0:00:16]}  Qxc4 {[%clk 0:00:07]} 44. bxc4 {[%clk 0:00:17]}  Rd6 {[%clk 0:00:07]} 45. Kb3 {[%clk 0:00:16]}  g5 {[%clk 0:00:07]} 46. c5 {[%clk 0:00:17]}  Rd8 {[%clk 0:00:06]} 47. c6 {[%clk 0:00:17]}  Kf6 {[%clk 0:00:06]} 48. c7 {[%clk 0:00:18]}  Rc8 {[%clk 0:00:06]} 49. Rxd2 {[%clk 0:00:18]}  Rxc7 {[%clk 0:00:07]} 50. Rd5 {[%clk 0:00:19]}  Ra7 {[%clk 0:00:06]} 51. Kc4 {[%clk 0:00:18]}  g4 {[%clk 0:00:07]} 52. Kd4 {[%clk 0:00:18]}  g3 {[%clk 0:00:07]} 53. Ke3 {[%clk 0:00:18]}  g2 {[%clk 0:00:08]} 54. Kf2 {[%clk 0:00:18]}  Rg7 {[%clk 0:00:08]} 55. Kg1 {[%clk 0:00:18]}  Rg5 {[%clk 0:00:09]} 56. Rd8 {[%clk 0:00:18]}  Ke5 {[%clk 0:00:09]} 57. Rd2 {[%clk 0:00:18]}  Ke4 {[%clk 0:00:09]} 58. Rc2 {[%clk 0:00:18]}  Kd3 {[%clk 0:00:10]} 59. Rc8 {[%clk 0:00:18]}  Kd2 {[%clk 0:00:10]} 60. Rc7 {[%clk 0:00:18]}  Kd3 {[%clk 0:00:10]} 61. Rc8 {[%clk 0:00:18]}  Kd4 {[%clk 0:00:11]} 62. Rc1 {[%clk 0:00:18]}  Rc5 {[%clk 0:00:12]} 63. Rd1+ {[%clk 0:00:19]}  Kc3 {[%clk 0:00:13]} 64. Kxg2 {[%clk 0:00:19]}  Kb2 {[%clk 0:00:12]} 65. Rd6 {[%clk 0:00:19]}  Rc2+ {[%clk 0:00:13]} 66. Kf3 {[%clk 0:00:19]}  a4 {[%clk 0:00:13]} 67. Ke3 {[%clk 0:00:19]}  Kxa2 {[%clk 0:00:14]} 68. Kd3 {[%clk 0:00:20]}  b3 {[%clk 0:00:14]} 69. Ra6 {[%clk 0:00:20]}  a3 {[%clk 0:00:15]} 70. Kd4 {[%clk 0:00:20]}  Rc8 {[%clk 0:00:15]} 71. Kd3 {[%clk 0:00:19]}  b2 {[%clk 0:00:16]} 72. Rb6 {[%clk 0:00:19]}  b1=Q+ {[%clk 0:00:16]} 0-1

[Event "November 21 Early 2023"]
[Site "https://www.chess.com"]
[Date "2023.11.21"]
[Round "9"]
[White "Manukian, Artak"]
[Black "Swicarz, Maciej"]
[Result "1/2-1/2"]
[Board "88"]
[TimeControl "180+1"]
[WhiteFideId "13301373"]
[BlackFideId "1113585"]
[WhiteElo "2030"]
[BlackElo "2127"]
[WhiteTeam "ARM"]
[BlackTeam "POL"]
[WhiteClock "0:00:10"]
[BlackClock "0:00:05"]

1. e4 {[%clk 0:02:51]}  c5 {[%clk 0:02:59]} 2. Nf3 {[%clk 0:02:51]}  d6 {[%clk 0:02:59]} 3. Bb5+ {[%clk 0:02:50]}  Nd7 {[%clk 0:02:59]} 4. O-O {[%clk 0:02:49]}  a6 {[%clk 0:02:56]} 5. Bd3 {[%clk 0:02:49]}  Ngf6 {[%clk 0:02:55]} 6. Re1 {[%clk 0:02:48]}  b5 {[%clk 0:02:50]} 7. c4 {[%clk 0:02:47]}  b4 {[%clk 0:02:42]} 8. Bc2 {[%clk 0:02:42]}  e5 {[%clk 0:02:32]} 9. d3 {[%clk 0:02:35]}  a5 {[%clk 0:02:30]} 10. Ba4 {[%clk 0:02:34]}  Be7 {[%clk 0:02:29]} 11. Nbd2 {[%clk 0:02:32]}  O-O {[%clk 0:02:28]} 12. Nf1 {[%clk 0:02:31]}  Nb6 {[%clk 0:02:26]} 13. Bb5 {[%clk 0:02:31]}  Ne8 {[%clk 0:02:19]} 14. a4 {[%clk 0:02:30]}  Nc7 {[%clk 0:02:16]} 15. b3 {[%clk 0:02:29]}  f5 {[%clk 0:02:13]} 16. N3d2 {[%clk 0:02:26]}  f4 {[%clk 0:02:12]} 17. g4 {[%clk 0:02:18]}  f3 {[%clk 0:01:41]} 18. h3 {[%clk 0:02:15]}  Bh4 {[%clk 0:01:41]} 19. Nxf3 {[%clk 0:02:12]}  Ne6 {[%clk 0:01:41]} 20. Ng3 {[%clk 0:01:42]}  g6 {[%clk 0:01:15]} 21. Kg2 {[%clk 0:01:37]}  Qf6 {[%clk 0:01:05]} 22. Ra2 {[%clk 0:01:29]}  Bb7 {[%clk 0:01:02]} 23. Nxh4 {[%clk 0:01:21]}  Qxh4 {[%clk 0:01:01]} 24. f3 {[%clk 0:01:22]}  Nd4 {[%clk 0:00:53]} 25. Rf1 {[%clk 0:01:17]}  Rf7 {[%clk 0:00:50]} 26. Raf2 {[%clk 0:01:10]}  Raf8 {[%clk 0:00:49]} 27. f4 {[%clk 0:01:05]}  exf4 {[%clk 0:00:45]} 28. Rxf4 {[%clk 0:01:04]}  Rxf4 {[%clk 0:00:42]} 29. Rxf4 {[%clk 0:00:57]}  Qe7 {[%clk 0:00:35]} 30. Ne2 {[%clk 0:00:50]}  Ne6 {[%clk 0:00:30]} 31. Rxf8+ {[%clk 0:00:45]}  Qxf8 {[%clk 0:00:31]} 32. Qf1 {[%clk 0:00:44]}  Qg7 {[%clk 0:00:28]} 33. Nf4 {[%clk 0:00:40]}  Ng5 {[%clk 0:00:21]} 34. h4 {[%clk 0:00:35]}  Nf7 {[%clk 0:00:19]} 35. Be8 {[%clk 0:00:26]}  Ne5 {[%clk 0:00:18]} 36. Ne6 {[%clk 0:00:26]}  Qe7 {[%clk 0:00:15]} 37. Bg5 {[%clk 0:00:21]}  Qxe8 {[%clk 0:00:15]} 38. Nd8 {[%clk 0:00:21]}  Bc8 {[%clk 0:00:12]} 39. Qf6 {[%clk 0:00:21]}  Nf7 {[%clk 0:00:10]} 40. Nxf7 {[%clk 0:00:18]}  Qxf7 {[%clk 0:00:11]} 41. Qxd6 {[%clk 0:00:19]}  Bxg4 {[%clk 0:00:09]} 42. Qxb6 {[%clk 0:00:10]}  Qf3+ {[%clk 0:00:09]} 43. Kg1 {[%clk 0:00:10]}  Qg3+ {[%clk 0:00:08]} 44. Kf1 {[%clk 0:00:10]}  Qf3+ {[%clk 0:00:05]} 45. Kg1 {[%clk 0:00:10]}  Qd1+ {[%clk 0:00:05]} 46. Kf2 {[%clk 0:00:09]}  Qe2+ {[%clk 0:00:05]} 47. Kg1 {[%clk 0:00:09]}  Qe1+ {[%clk 0:00:04]} 48. Kg2 {[%clk 0:00:09]}  Qe2+ {[%clk 0:00:05]} 49. Kg1 {[%clk 0:00:10]}  Qe1+ {[%clk 0:00:05]} 50. Kg2 {[%clk 0:00:10]}  Qe2+ {[%clk 0:00:05]} 51. Kg1 {[%clk 0:00:10]} 1/2-1/2

[Event "November 21 Early 2023"]
[Site "https://www.chess.com"]
[Date "2023.11.21"]
[Round "9"]
[White "Kovalevsky, Stanislav"]
[Black "Streltsov, Alexey"]
[Result "0-1"]
[Board "89"]
[TimeControl "180+1"]
[WhiteFideId "13508598"]
[BlackFideId "24104434"]
[WhiteElo "2092"]
[BlackElo "2311"]
[WhiteTeam "FID"]
[BlackTeam "ISR"]
[WhiteClock "0:00:00"]
[BlackClock "0:00:08"]

1. e4 {[%clk 0:03:00]}  Nf6 {[%clk 0:02:59]} 2. e5 {[%clk 0:02:59]}  Nd5 {[%clk 0:02:59]} 3. Nf3 {[%clk 0:02:59]}  d6 {[%clk 0:02:59]} 4. exd6 {[%clk 0:02:59]}  cxd6 {[%clk 0:02:59]} 5. d4 {[%clk 0:03:00]}  Nc6 {[%clk 0:02:50]} 6. c3 {[%clk 0:02:56]}  e5 {[%clk 0:02:24]} 7. dxe5 {[%clk 0:02:38]}  dxe5 {[%clk 0:02:25]} 8. Bb5 {[%clk 0:02:37]}  Bc5 {[%clk 0:01:39]} 9. O-O {[%clk 0:02:13]}  O-O {[%clk 0:01:26]} 10. Bxc6 {[%clk 0:02:12]}  bxc6 {[%clk 0:01:27]} 11. Nxe5 {[%clk 0:02:12]}  Ba6 {[%clk 0:01:04]} 12. Nxc6 {[%clk 0:02:10]}  Qd6 {[%clk 0:01:01]} 13. Na5 {[%clk 0:01:22]}  Bxf1 {[%clk 0:00:52]} 14. Qxf1 {[%clk 0:01:23]}  Rfe8 {[%clk 0:00:42]} 15. Nb7 {[%clk 0:01:18]}  Qb6 {[%clk 0:00:42]} 16. Nxc5 {[%clk 0:01:17]}  Qxc5 {[%clk 0:00:43]} 17. Na3 {[%clk 0:01:15]}  Rad8 {[%clk 0:00:38]} 18. Nc2 {[%clk 0:01:13]}  Nxc3 {[%clk 0:00:27]} 19. Be3 {[%clk 0:00:54]}  Qf5 {[%clk 0:00:26]} 20. Nd4 {[%clk 0:00:37]}  Rxd4 {[%clk 0:00:25]} 21. bxc3 {[%clk 0:00:38]}  Ra4 {[%clk 0:00:20]} 22. Qd1 {[%clk 0:00:23]}  Qb5 {[%clk 0:00:19]} 23. Rb1 {[%clk 0:00:20]}  Qc6 {[%clk 0:00:20]} 24. Bd4 {[%clk 0:00:18]}  Rxa2 {[%clk 0:00:16]} 25. Qg4 {[%clk 0:00:18]}  Qg6 {[%clk 0:00:15]} 26. Qxg6 {[%clk 0:00:15]}  hxg6 {[%clk 0:00:15]} 27. h3 {[%clk 0:00:14]}  a5 {[%clk 0:00:15]} 28. Rb7 {[%clk 0:00:13]}  a4 {[%clk 0:00:15]} 29. Ra7 {[%clk 0:00:13]}  Rb8 {[%clk 0:00:11]} 30. Kh2 {[%clk 0:00:12]}  Rc8 {[%clk 0:00:09]} 31. Kg3 {[%clk 0:00:11]}  f6 {[%clk 0:00:09]} 32. Kf3 {[%clk 0:00:10]}  g5 {[%clk 0:00:10]} 33. g3 {[%clk 0:00:10]}  Kh7 {[%clk 0:00:10]} 34. h4 {[%clk 0:00:10]}  Kg6 {[%clk 0:00:11]} 35. hxg5 {[%clk 0:00:10]}  Kxg5 {[%clk 0:00:11]} 36. Rxg7+ {[%clk 0:00:09]}  Kf5 {[%clk 0:00:12]} 37. Rf7 {[%clk 0:00:09]}  Rc6 {[%clk 0:00:11]} 38. g4+ {[%clk 0:00:10]}  Kg6 {[%clk 0:00:10]} 39. Ra7 {[%clk 0:00:10]}  Ra3 {[%clk 0:00:11]} 40. Kf4 {[%clk 0:00:09]}  Rc4 {[%clk 0:00:10]} 41. f3 {[%clk 0:00:09]}  Raxc3 {[%clk 0:00:11]} 42. Ke4 {[%clk 0:00:06]}  Rb3 {[%clk 0:00:10]} 43. Kd5 {[%clk 0:00:05]}  Rbb4 {[%clk 0:00:08]} 44. Ba1 {[%clk 0:00:04]}  Rf4 {[%clk 0:00:07]} 45. Ra6 {[%clk 0:00:02]}  Rb5+ {[%clk 0:00:08]} 46. Kc6 {[%clk 0:00:02]}  Rb1 {[%clk 0:00:08]} 47. Bc3 {[%clk 0:00:00]}  Rc1 {[%clk 0:00:08]} 0-1

[Event "November 21 Early 2023"]
[Site "https://www.chess.com"]
[Date "2023.11.21"]
[Round "9"]
[White "Gutkin, Ilya"]
[Black "Thorfinnsson, Bjorn"]
[Result "0-1"]
[Board "90"]
[TimeControl "180+1"]
[WhiteFideId "16203470"]
[BlackFideId "2300982"]
[WhiteElo "2248"]
[BlackElo "2381"]
[WhiteTeam "GER"]
[BlackTeam "ISL"]
[WhiteClock "0:00:00"]
[BlackClock "0:00:19"]

1. e4 {[%clk 0:03:00]}  e5 {[%clk 0:02:58]} 2. Nf3 {[%clk 0:03:01]}  Nc6 {[%clk 0:02:58]} 3. Bb5 {[%clk 0:03:01]}  Nge7 {[%clk 0:02:56]} 4. O-O {[%clk 0:03:01]}  d6 {[%clk 0:02:56]} 5. c3 {[%clk 0:03:01]}  Bd7 {[%clk 0:02:56]} 6. Bc4 {[%clk 0:02:58]}  h6 {[%clk 0:02:54]} 7. d4 {[%clk 0:02:57]}  g5 {[%clk 0:02:54]} 8. dxe5 {[%clk 0:02:43]}  dxe5 {[%clk 0:02:53]} 9. a4 {[%clk 0:02:43]}  Ng6 {[%clk 0:02:52]} 10. Na3 {[%clk 0:02:38]}  g4 {[%clk 0:02:47]} 11. Ne1 {[%clk 0:02:36]}  h5 {[%clk 0:02:43]} 12. Nac2 {[%clk 0:02:29]}  Qf6 {[%clk 0:02:39]} 13. Ne3 {[%clk 0:02:24]}  Nf4 {[%clk 0:02:33]} 14. Nd5 {[%clk 0:02:20]}  Nxd5 {[%clk 0:02:32]} 15. exd5 {[%clk 0:02:12]}  Ne7 {[%clk 0:02:31]} 16. Bb5 {[%clk 0:01:49]}  O-O-O {[%clk 0:02:25]} 17. Be3 {[%clk 0:01:41]}  a6 {[%clk 0:01:50]} 18. Bxd7+ {[%clk 0:01:41]}  Rxd7 {[%clk 0:01:49]} 19. c4 {[%clk 0:01:38]}  Nf5 {[%clk 0:01:48]} 20. Qe2 {[%clk 0:01:28]}  Qg6 {[%clk 0:01:33]} 21. Nd3 {[%clk 0:01:25]}  f6 {[%clk 0:01:28]} 22. b4 {[%clk 0:01:22]}  h4 {[%clk 0:01:28]} 23. a5 {[%clk 0:00:55]}  h3 {[%clk 0:00:59]} 24. g3 {[%clk 0:00:50]}  Nd6 {[%clk 0:00:42]} 25. Nc5 {[%clk 0:00:46]}  Rd8 {[%clk 0:00:27]} 26. b5 {[%clk 0:00:43]}  Ne4 {[%clk 0:00:27]} 27. Qc2 {[%clk 0:00:09]}  Bxc5 {[%clk 0:00:25]} 28. Bxc5 {[%clk 0:00:09]}  Rhg8 {[%clk 0:00:25]} 29. Be3 {[%clk 0:00:06]}  Nd6 {[%clk 0:00:19]} 30. Qxg6 {[%clk 0:00:05]}  Rxg6 {[%clk 0:00:20]} 31. bxa6 {[%clk 0:00:05]}  Nxc4 {[%clk 0:00:20]} 32. axb7+ {[%clk 0:00:04]}  Kxb7 {[%clk 0:00:20]} 33. a6+ {[%clk 0:00:04]}  Ka8 {[%clk 0:00:20]} 34. Rfc1 {[%clk 0:00:00]}  Nxe3 {[%clk 0:00:19]} 35. fxe3 {[%clk 0:00:01]}  Rg7 {[%clk 0:00:19]} 36. e4 {[%clk 0:00:00]}  Rd6 {[%clk 0:00:19]} 0-1

[Event "November 21 Early 2023"]
[Site "https://www.chess.com"]
[Date "2023.11.21"]
[Round "9"]
[White "Bashirli, Saadat"]
[Black "Kim, Sergey"]
[Result "0-1"]
[Board "91"]
[TimeControl "180+1"]
[WhiteFideId "13429990"]
[BlackFideId "13700570"]
[WhiteElo "1537"]
[BlackElo "2571"]
[WhiteTeam "AZE"]
[BlackTeam "KAZ"]
[WhiteClock "0:00:00"]
[BlackClock "0:00:16"]

1. d4 {[%clk 0:03:00]}  Nf6 {[%clk 0:02:59]} 2. e3 {[%clk 0:03:00]}  g6 {[%clk 0:02:59]} 3. Bd3 {[%clk 0:02:58]}  Bg7 {[%clk 0:02:59]} 4. f4 {[%clk 0:02:56]}  O-O {[%clk 0:02:58]} 5. Nf3 {[%clk 0:02:56]}  d6 {[%clk 0:02:58]} 6. O-O {[%clk 0:02:55]}  Nbd7 {[%clk 0:02:57]} 7. Nbd2 {[%clk 0:02:52]}  e5 {[%clk 0:02:57]} 8. e4 {[%clk 0:02:46]}  exf4 {[%clk 0:02:53]} 9. c3 {[%clk 0:02:41]}  Re8 {[%clk 0:02:46]} 10. Qc2 {[%clk 0:02:34]}  c6 {[%clk 0:02:32]} 11. Re1 {[%clk 0:02:25]}  Nh5 {[%clk 0:02:27]} 12. Nc4 {[%clk 0:02:15]}  Nf8 {[%clk 0:02:24]} 13. Bd2 {[%clk 0:02:07]}  b5 {[%clk 0:02:20]} 14. Na3 {[%clk 0:02:05]}  Bg4 {[%clk 0:02:15]} 15. Rf1 {[%clk 0:01:57]}  a6 {[%clk 0:02:12]} 16. Qc1 {[%clk 0:01:54]}  c5 {[%clk 0:01:57]} 17. Bxf4 {[%clk 0:01:08]}  Bxf3 {[%clk 0:01:54]} 18. Rxf3 {[%clk 0:01:08]}  cxd4 {[%clk 0:01:53]} 19. g4 {[%clk 0:00:56]}  Nxf4 {[%clk 0:01:46]} 20. Qxf4 {[%clk 0:00:54]}  Qd7 {[%clk 0:01:44]} 21. Raf1 {[%clk 0:00:50]}  Ra7 {[%clk 0:01:38]} 22. c4 {[%clk 0:00:46]}  Ne6 {[%clk 0:01:32]} 23. Qd2 {[%clk 0:00:43]}  Nc5 {[%clk 0:01:24]} 24. cxb5 {[%clk 0:00:41]}  Nxd3 {[%clk 0:01:16]} 25. Qxd3 {[%clk 0:00:38]}  axb5 {[%clk 0:01:13]} 26. h3 {[%clk 0:00:31]}  b4 {[%clk 0:01:03]} 27. Nb5 {[%clk 0:00:29]}  Ra5 {[%clk 0:00:57]} 28. Nxd4 {[%clk 0:00:20]}  Qa7 {[%clk 0:00:54]} 29. Rd1 {[%clk 0:00:14]}  Rxa2 {[%clk 0:00:50]} 30. Rf2 {[%clk 0:00:07]}  Qc5 {[%clk 0:00:36]} 31. Nb3 {[%clk 0:00:05]}  Qe5 {[%clk 0:00:32]} 32. Re2 {[%clk 0:00:04]}  Rxb2 {[%clk 0:00:30]} 33. Rxb2 {[%clk 0:00:02]}  Qxb2 {[%clk 0:00:30]} 34. Rd2 {[%clk 0:00:03]}  Qc3 {[%clk 0:00:28]} 35. Qd5 {[%clk 0:00:02]}  Qxh3 {[%clk 0:00:20]} 36. Qxd6 {[%clk 0:00:02]}  Qxb3 {[%clk 0:00:18]} 37. Qd7 {[%clk 0:00:01]}  Rf8 {[%clk 0:00:17]} 38. Qe7 {[%clk 0:00:01]}  Qe3+ {[%clk 0:00:17]} 39. Kf1 {[%clk 0:00:00]}  Qxd2 {[%clk 0:00:16]} 0-1

[Event "November 21 Early 2023"]
[Site "https://www.chess.com"]
[Date "2023.11.21"]
[Round "9"]
[White "Shuvalov, Evgenij"]
[Black "Kubicka, Anna"]
[Result "1-0"]
[Board "94"]
[TimeControl "180+1"]
[WhiteFideId "4187237"]
[BlackFideId "1152254"]
[WhiteElo "2059"]
[BlackElo "2042"]
[WhiteTeam "FID"]
[BlackTeam "POL"]
[WhiteClock "0:00:12"]
[BlackClock "0:00:01"]

1. d4 {[%clk 0:03:00]}  Nf6 {[%clk 0:02:59]} 2. c4 {[%clk 0:02:57]}  e6 {[%clk 0:02:59]} 3. Nc3 {[%clk 0:02:56]}  Bb4 {[%clk 0:02:58]} 4. e3 {[%clk 0:02:57]}  O-O {[%clk 0:02:58]} 5. a3 {[%clk 0:02:57]}  Bxc3+ {[%clk 0:02:57]} 6. bxc3 {[%clk 0:02:58]}  c5 {[%clk 0:02:55]} 7. Ne2 {[%clk 0:02:57]}  d6 {[%clk 0:02:53]} 8. Ng3 {[%clk 0:02:55]}  Nc6 {[%clk 0:02:50]} 9. Ra2 {[%clk 0:02:55]}  b6 {[%clk 0:02:49]} 10. e4 {[%clk 0:02:52]}  e5 {[%clk 0:02:47]} 11. d5 {[%clk 0:02:42]}  Ne7 {[%clk 0:02:45]} 12. f3 {[%clk 0:02:26]}  Ne8 {[%clk 0:02:35]} 13. Bd3 {[%clk 0:02:24]}  f5 {[%clk 0:02:33]} 14. exf5 {[%clk 0:02:19]}  Nxf5 {[%clk 0:02:31]} 15. Qc2 {[%clk 0:02:14]}  g6 {[%clk 0:02:26]} 16. Ne4 {[%clk 0:02:06]}  Neg7 {[%clk 0:01:57]} 17. Bg5 {[%clk 0:02:00]}  Qc7 {[%clk 0:01:42]} 18. g4 {[%clk 0:01:52]}  h6 {[%clk 0:01:18]} 19. gxf5 {[%clk 0:01:35]}  hxg5 {[%clk 0:01:15]} 20. f6 {[%clk 0:01:10]}  Nh5 {[%clk 0:00:53]} 21. Rg1 {[%clk 0:01:08]}  g4 {[%clk 0:00:53]} 22. fxg4 {[%clk 0:01:04]}  Nxf6 {[%clk 0:00:53]} 23. Nxf6+ {[%clk 0:00:52]}  Rxf6 {[%clk 0:00:54]} 24. Bxg6 {[%clk 0:00:52]}  Qg7 {[%clk 0:00:54]} 25. Bh5 {[%clk 0:00:42]}  Qg5 {[%clk 0:00:49]} 26. Qd2 {[%clk 0:00:41]}  Qxd2+ {[%clk 0:00:43]} 27. Rxd2 {[%clk 0:00:40]}  Ba6 {[%clk 0:00:38]} 28. g5 {[%clk 0:00:38]}  Rf4 {[%clk 0:00:34]} 29. Be2 {[%clk 0:00:36]}  Bxc4 {[%clk 0:00:31]} 30. Bxc4 {[%clk 0:00:35]}  Rxc4 {[%clk 0:00:32]} 31. Rg3 {[%clk 0:00:35]}  Rf8 {[%clk 0:00:26]} 32. Rf2 {[%clk 0:00:33]}  Re4+ {[%clk 0:00:24]} 33. Kf1 {[%clk 0:00:33]}  Ref4 {[%clk 0:00:21]} 34. Rxf4 {[%clk 0:00:32]}  Rxf4+ {[%clk 0:00:22]} 35. Ke2 {[%clk 0:00:31]}  Ra4 {[%clk 0:00:20]} 36. Kd3 {[%clk 0:00:26]}  Kg7 {[%clk 0:00:20]} 37. Rh3 {[%clk 0:00:22]}  Kg6 {[%clk 0:00:18]} 38. Rh6+ {[%clk 0:00:22]}  Kxg5 {[%clk 0:00:18]} 39. Rxd6 {[%clk 0:00:23]}  Rxa3 {[%clk 0:00:19]} 40. Rd8 {[%clk 0:00:20]}  Kf6 {[%clk 0:00:18]} 41. h4 {[%clk 0:00:17]}  Ra1 {[%clk 0:00:17]} 42. Kc4 {[%clk 0:00:15]}  a6 {[%clk 0:00:15]} 43. Rd6+ {[%clk 0:00:14]}  Ke7 {[%clk 0:00:14]} 44. Rxb6 {[%clk 0:00:15]}  Ra4+ {[%clk 0:00:11]} 45. Kxc5 {[%clk 0:00:15]}  Rxh4 {[%clk 0:00:12]} 46. Rxa6 {[%clk 0:00:15]}  e4 {[%clk 0:00:12]} 47. Re6+ {[%clk 0:00:15]}  Kd7 {[%clk 0:00:11]} 48. c4 {[%clk 0:00:15]}  Rf4 {[%clk 0:00:10]} 49. Re5 {[%clk 0:00:13]}  Rh4 {[%clk 0:00:09]} 50. Kb5 {[%clk 0:00:13]}  Kd6 {[%clk 0:00:09]} 51. Re6+ {[%clk 0:00:13]}  Kd7 {[%clk 0:00:09]} 52. c5 {[%clk 0:00:13]}  Rh5 {[%clk 0:00:08]} 53. Kc4 {[%clk 0:00:13]}  Rh4 {[%clk 0:00:08]} 54. Kd4 {[%clk 0:00:12]}  e3+ {[%clk 0:00:07]} 55. Kxe3 {[%clk 0:00:12]}  Rc4 {[%clk 0:00:08]} 56. c6+ {[%clk 0:00:12]}  Kc7 {[%clk 0:00:08]} 57. Kd3 {[%clk 0:00:13]}  Ra4 {[%clk 0:00:08]} 58. Re7+ {[%clk 0:00:12]}  Kd8 {[%clk 0:00:06]} 59. Rd7+ {[%clk 0:00:12]}  Kc8 {[%clk 0:00:06]} 60. Kc3 {[%clk 0:00:12]}  Re4 {[%clk 0:00:06]} 61. Kd3 {[%clk 0:00:11]}  Ra4 {[%clk 0:00:05]} 62. Re7 {[%clk 0:00:11]}  Kd8 {[%clk 0:00:05]} 63. Re4 {[%clk 0:00:10]}  Ra3+ {[%clk 0:00:05]} 64. Kd4 {[%clk 0:00:11]}  Kc7 {[%clk 0:00:04]} 65. Re7+ {[%clk 0:00:10]}  Kd8 {[%clk 0:00:05]} 66. Rd7+ {[%clk 0:00:10]}  Kc8 {[%clk 0:00:05]} 67. Kc5 {[%clk 0:00:11]}  Rc3+ {[%clk 0:00:04]} 68. Kd6 {[%clk 0:00:11]}  Rh3 {[%clk 0:00:03]} 69. Re7 {[%clk 0:00:11]}  Rh6+ {[%clk 0:00:03]} 70. Re6 {[%clk 0:00:12]}  Rh8 {[%clk 0:00:04]} 71. Kc5 {[%clk 0:00:12]}  Rh1 {[%clk 0:00:04]} 72. d6 {[%clk 0:00:12]}  Rc1+ {[%clk 0:00:04]} 73. Kd5 {[%clk 0:00:12]}  Rd1+ {[%clk 0:00:04]} 74. Ke5 {[%clk 0:00:12]}  Re1+ {[%clk 0:00:04]} 75. Kf5 {[%clk 0:00:12]}  Rf1+ {[%clk 0:00:04]} 76. Kg4 {[%clk 0:00:13]}  Rg1+ {[%clk 0:00:05]} 77. Kf3 {[%clk 0:00:13]}  Rf1+ {[%clk 0:00:05]} 78. Kg2 {[%clk 0:00:13]}  Rf8 {[%clk 0:00:04]} 79. Re7 {[%clk 0:00:13]}  Rg8+ {[%clk 0:00:04]} 80. Kf3 {[%clk 0:00:13]}  Kd8 {[%clk 0:00:05]} 81. Ra7 {[%clk 0:00:12]}  Rf8+ {[%clk 0:00:04]} 82. Ke4 {[%clk 0:00:12]}  Re8+ {[%clk 0:00:01]} 83. Kd5 {[%clk 0:00:12]} 1-0